{"text_format":"1","workbook":"xlsx","n_sheets":2,"sheets":["Расчет","Прайс"],"not_rendered":{"charts":0,"images":0,"macros":1,"external_links":0,"defined_names":10,"comments":0,"pivot_tables":0},"unopened":[],"bounds":{"document_bytes":16777216,"sheet_cells":100000,"rows_first":2000,"rows_last":500,"rows_between":2000,"halvings":0,"cell_chars":16384,"cell_head_chars":4096},"cells_cut":0,"cells_raw":0,"read":"whole","date_system":"1900"}

{"sheet":"Расчет","index":0,"n_rows":53,"n_cols":6,"rows_kept":53,"cut":false,"hidden":false,"merged":[[1,0,1,1],[1,2,1,5],[3,1,3,5],[53,0,53,3],[49,0,49,4],[51,0,51,3],[52,0,52,3]]}
[]
["Ф.И.О."]
[]
[null,"Лист обсчета корпусной мебели"]
[]
[]
["№","Наименование","Примечание","Кол-во/ед.изм.","Цена","Сумма"]
[1,"Каркас",null,1,5,{"$f":"E8*D8","v":5}]
[2,"Каркас/Навесные ящики",null,2,9,{"$f":"E9*D9*0.4","v":7.2}]
[3,"фасады прямые","пластик-с/ф",3,5944,{"$f":"D10*E10","v":17832}]
[4,"Фасад под стекло и сетку","AGT",4,3616,14464]
[5,"Стекло",null,0,null,0]
[6,"Сетка",null,null,1,0]
[7,"Ремикс",null,0,null,0]
[8,"Полукруг. Дверка (Гнутая)",null,0,null,0]
[9,"Сложн. за угловую секцию",null,null,null,0]
[10,"Увеличение высоты",null,null,null,0]
[11,"Увеличение глубины",null,null,null,{"$f":"D18*E18","v":0}]
[12,"Ящик",null,null,null,0]
[13,"Ящик",null,null,null,0]
[14,"Дно ящика",null,null,null,0]
[15,"Ручки",null,null,null,0]
[16,"Постформинг-столешница",null,null,null,0]
[17,"Постформинг стеновой",null,null,null,0]
[18,"Водоотбойник",null,null,null,0]
[19,"AL кант для столешницы",null,null,null,0]
[20,"AL вставка",null,null,null,0]
[21,"Закругленный угол",null,null,null,0]
[22,"Скошенный угол",null,null,null,0]
[23,"Карниз",null,null,null,0]
[24,"Кант, ПВХ или AL (кромка",null,null,null,0]
[25,"на карниз)",null,null,null,0]
[26,"Освещение (Светильник)",null,null,null,0]
[27,"Трансформатор",null,null,null,0]
[28,"Подъемный механизм",null,null,null,0]
[29,"Подъемный механизм",null,null,null,0]
[30,"Демпфер",null,null,null,0]
[31,"Выкатные емкости",null,null,null,0]
[32,"Сушка",null,null,null,0]
[33,"Труба",null,null,null,0]
[34,"Фланцы",null,null,null,0]
[35,"Карзина на трубу",null,null,null,0]
[36,null,null,null,null,0]
[37,null,null,null,null,0]
[38,null,"ЛДСП",null,null,0]
[39,null,"ЛДСП/Стекло",null,null,0]
[40,null,null,null,null,0]
[41,null,null,null,null,0]
[42,null,null,null,null,0]
["Итого",null,null,null,null,{"$f":"SUM(F8:F22,F24:F48)","v":32308.2}]
[null,null,null,null,"Скидка:",{"$f":"SUM(F8:F49)","v":32308.2}]
[null,null,null,null,"столешница",{"$f":"F23","v":0}]
[null,null,null,null,"Итого:",{"$f":"F51+F52","v":32308.2}]

{"sheet":"Прайс","index":1,"n_rows":58,"n_cols":8,"rows_kept":58,"cut":false,"hidden":false,"merged":[]}
["фасады прямые",null,null,null,null,null,"Фасады под стекло и сетку"]
[null,"пластик-с/ф",4656,null,null,null,"AGT",3616]
[null,"пластик-с/ф с 2х стор.",5944,null,null,null,"F 1-11",6464]
[null,"пластик+ПВХ",4418,null,null,null,"TOTAL",4339]
[null,"пластик+ПВХ с 2х стор.",5650]
[null,"Эмаль матовая",5500]
[null,"эмаль матовая с 2х стор.",7700]
[null,"Эмаль глян. и флиттер",6269]
[null,"Эмаль глян. и флиттер с 2х стор.",10230]
[null,"Эмаль полиэфир",6269]
[null,"Эмаль полиэфир с 2х стор.",10230]
[null,"Пластик эксклюзивный",10091]
[null,"Пластик эксклюзивный с 2х стор.",15357]
[null,"Ламинат Груша",3187]
["Фрезеровка внутренняя","Пластик",5786]
[null,"пластик с 2х стор.",7074]
[null,"пластик эксклюзивный",11057]
[null,"пластик эксклюзивный с 2х стор.",16329]
[null,"Ламинат груша",4068]
["Фрезеровка БОР","Ламинат Груша",6252]
[null,"Пластик",6170]
[null,"пластик с 2х стор.",7458]
[null,"Шпон",5639]
[null,"пластик эксклюзивный",12453]
[null,"пластик эксклюзивный с 2х стор.",17775]
["AGT профиль","вставка ДВП+пластик",5486]
[null,"вставка ДВП+пластик с 2х стор",7311]
[null,"вставка ДВП+пласт. эксклюз.",9763]
[null,"вставка ДВП+пласт. эксклюз. С 2х стор.",15809]
[null,"вставка реечная с пазом",5933]
[null,"вставка реечная с клином",5933]
[null,"вставка ЛМДФ фирменная",4927]
[null,"Вставка ротанг",10419]
["TOTAL профиль","вставка ДВП+пластик",6209]
[null,"вставка ДВП+пластик с 2х стор",8034]
[null,"вставка ДВП+пласт. эксклюз.",10486]
[null,"вставка ДВП+пласт. эксклюз. С 2х стор.",16532]
[null,"вставка реечная с пазом",6656]
[null,"вставка реечная с клином",6656]
[null,"вставка ЛМДФ фирменная",5650]
[null,"Вставка ротанг",11142]
["Алюмин. Профиль","DP 1-03+МДФ+пластик",4859]
[null,"DP 1-03+МДФ+пластик с 2х сторон",6147]
[null,"DP 1-03+ДСП+ пластик",4644]
[null,"A 01-16+ЛДСП",3187]
[null,"DP 1-09+AGT панель 18 мм",7300]
["ЛДСП","ЛДСП",1752]
[null,"ЛДСП с накладками МДФ",2836]
["МДФ UV","18 мм",3932]
[null,"10 мм",3684]
[null,"Розы на белом 18мм",7232]
[null,"Розы на черном 18мм",7232]
[null,"ночь Каира 18мм",7232]
[null,"Глинтвейн 18мм",7232]
["NIEMANN 19 мм","F30/003 береза",9503]
[null,"H680 cocobolo",9503]
[null,"H3734 орех",9503]
[null,"H3030/3031 светлая/темная олива",9503]